[Event "Late-Titled-Tuesday-Blitz-December-26-2023"]
[Site "Chess.com"]
[Date "2023.12.26"]
[Round "3"]
[White "lucliasco"]
[Black "CarlosjPineror"]
[Result "0-1"]
[WhiteElo "2898"]
[BlackElo "2510"]
[TimeControl "180+1"]
[EndTime "14:29:16 PST"]
[Termination "CarlosjPineror won by resignation"]

1. e4 {[%clk 0:03:00.9]} 1... c5 {[%clk 0:02:36]} 2. Nc3 {[%clk 0:02:54.1]} 2...
e6 {[%clk 0:02:36]} 3. f4 {[%clk 0:02:53.1]} 3... a6 {[%clk 0:02:35.9]} 4. Nf3
{[%clk 0:02:52]} 4... Nc6 {[%clk 0:02:35.9]} 5. d3 {[%clk 0:02:48.8]} 5... d5
{[%clk 0:02:35.4]} 6. Be2 {[%clk 0:02:45.8]} 6... Nf6 {[%clk 0:02:35.3]} 7. O-O
{[%clk 0:02:43.1]} 7... Be7 {[%clk 0:02:34.5]} 8. e5 {[%clk 0:02:40.1]} 8... Ng8
{[%clk 0:02:33.9]} 9. Qe1 {[%clk 0:02:40.5]} 9... h5 {[%clk 0:02:33.8]} 10. Qg3
{[%clk 0:02:39]} 10... g6 {[%clk 0:02:33.5]} 11. Ng5 {[%clk 0:02:32.8]} 11...
Nh6 {[%clk 0:02:29.6]} 12. Bd2 {[%clk 0:02:31.9]} 12... Nf5 {[%clk 0:02:29.4]}
13. Qh3 {[%clk 0:02:31.7]} 13... Bxg5 {[%clk 0:01:58.5]} 14. fxg5 {[%clk
0:02:29.9]} 14... Ke7 {[%clk 0:01:23.8]} 15. Bf4 {[%clk 0:02:08.2]} 15... Ncd4
{[%clk 0:00:58.9]} 16. Bd1 {[%clk 0:01:58.5]} 16... b6 {[%clk 0:00:58.8]} 17.
Ne2 {[%clk 0:01:58.1]} 17... Nxe2+ {[%clk 0:00:52.5]} 18. Bxe2 {[%clk 0:01:59]}
18... Bb7 {[%clk 0:00:53.1]} 19. c3 {[%clk 0:01:57]} 19... d4 {[%clk 0:00:50.8]}
20. c4 {[%clk 0:01:55.3]} 20... a5 {[%clk 0:00:44.4]} 21. a3 {[%clk 0:01:50.5]}
21... Qd7 {[%clk 0:00:32.3]} 22. b4 {[%clk 0:01:49.1]} 22... axb4 {[%clk
0:00:30.4]} 23. axb4 {[%clk 0:01:50]} 23... Rxa1 {[%clk 0:00:30.5]} 24. Rxa1
{[%clk 0:01:49]} 24... Ra8 {[%clk 0:00:30.8]} 25. Rxa8 {[%clk 0:01:34.1]} 25...
Bxa8 {[%clk 0:00:31.7]} 26. bxc5 {[%clk 0:01:31.8]} 26... bxc5 {[%clk
0:00:31.4]} 27. g4 {[%clk 0:01:32.5]} 27... hxg4 {[%clk 0:00:25.8]} 28. Bxg4
{[%clk 0:01:33.3]} 28... Qb7 {[%clk 0:00:23.2]} 29. Bxf5 {[%clk 0:01:30.5]}
29... Qh1+ {[%clk 0:00:22.3]} 30. Kf2 {[%clk 0:01:30.3]} 30... exf5 {[%clk
0:00:21.9]} 31. e6 {[%clk 0:01:30.3]} 31... Kxe6 {[%clk 0:00:19.9]} 32. Qg3
{[%clk 0:01:29.2]} 32... Qd1 {[%clk 0:00:14.3]} 33. h4 {[%clk 0:01:19.1]} 33...
Qg4 {[%clk 0:00:08.8]} 34. Qh2 {[%clk 0:01:13.8]} 34... Qf3+ {[%clk 0:00:08.3]}
35. Ke1 {[%clk 0:01:14.6]} 35... Bc6 {[%clk 0:00:07.9]} 36. Bb8 {[%clk
0:01:11.8]} 36... Qe3+ {[%clk 0:00:07.3]} 37. Qe2 {[%clk 0:01:06]} 37... Qxe2+
{[%clk 0:00:07.1]} 38. Kxe2 {[%clk 0:01:06.9]} 38... Ba4 {[%clk 0:00:06.6]} 39.
Ba7 {[%clk 0:01:04.8]} 39... Kd6 {[%clk 0:00:06.8]} 40. Bb8+ {[%clk 0:01:05.4]}
40... Kc6 {[%clk 0:00:06.9]} 41. Be5 {[%clk 0:01:05.4]} 41... Bb3 {[%clk
0:00:06.9]} 42. Bf6 {[%clk 0:01:05.7]} 42... Ba2 {[%clk 0:00:07.1]} 43. Bg7
{[%clk 0:01:06.2]} 43... Bb1 {[%clk 0:00:07.5]} 44. Bf6 {[%clk 0:01:06.3]} 44...
Kd6 {[%clk 0:00:07.4]} 45. Bg7 {[%clk 0:01:06.6]} 45... Kc6 {[%clk 0:00:07.7]}
46. Bf8 {[%clk 0:01:07.2]} 46... f4 {[%clk 0:00:07.9]} 47. Bg7 {[%clk
0:00:53.1]} 47... f3+ {[%clk 0:00:08]} 48. Kxf3 {[%clk 0:00:52.4]} 48... Bxd3
{[%clk 0:00:08.5]} 49. Bf6 {[%clk 0:00:53.3]} 49... Bxc4 {[%clk 0:00:08.7]} 50.
Ke4 {[%clk 0:00:51.1]} 50... Kd6 {[%clk 0:00:06.4]} 51. Be5+ {[%clk 0:00:49.2]}
51... Ke6 {[%clk 0:00:06.8]} 52. Bc7 {[%clk 0:00:49.7]} 52... Ba2 {[%clk
0:00:07.2]} 53. Kd3 {[%clk 0:00:47.5]} 53... Kd5 {[%clk 0:00:07.1]} 54. Kc2
{[%clk 0:00:46.1]} 54... c4 {[%clk 0:00:08]} 55. Kb2 {[%clk 0:00:44.8]} 55...
Bb3 {[%clk 0:00:08.7]} 56. Ka3 {[%clk 0:00:45.4]} 56... Bd1 {[%clk 0:00:09]} 57.
Kb4 {[%clk 0:00:42.8]} 57... c3 {[%clk 0:00:09.2]} 58. Bf4 {[%clk 0:00:40.7]}
58... Be2 {[%clk 0:00:09.4]} 59. Kb3 {[%clk 0:00:38.1]} 59... Ke4 {[%clk
0:00:09.4]} 60. Bd6 {[%clk 0:00:35.6]} 60... Kd3 {[%clk 0:00:09.1]} 61. Ba3
{[%clk 0:00:34.5]} 61... Bd1+ {[%clk 0:00:08.7]} 62. Kb4 {[%clk 0:00:34.3]}
62... Bf3 {[%clk 0:00:08.8]} 63. Kb3 {[%clk 0:00:34.3]} 63... Bd5+ {[%clk
0:00:08.7]} 64. Kb4 {[%clk 0:00:35]} 64... Kc2 {[%clk 0:00:09]} 65. Kc5 {[%clk
0:00:35]} 65... d3 {[%clk 0:00:09.5]} 66. h5 {[%clk 0:00:34.9]} 66... gxh5
{[%clk 0:00:09.2]} 67. g6 {[%clk 0:00:34.8]} 67... fxg6 {[%clk 0:00:09.4]} 0-1

[Event "Late-Titled-Tuesday-Blitz-December-26-2023"]
[Site "Chess.com"]
[Date "2023.12.26"]
[Round "3"]
[White "Sanyura"]
[Black "kasparicy"]
[Result "1-0"]
[WhiteElo "2613"]
[BlackElo "2428"]
[TimeControl "180+1"]
[EndTime "14:29:20 PST"]
[Termination "Sanyura won by resignation"]

1. Nf3 {[%clk 0:02:53.1]} 1... Nf6 {[%clk 0:02:58.8]} 2. c4 {[%clk 0:02:49.3]}
2... g6 {[%clk 0:02:58.3]} 3. b3 {[%clk 0:02:50]} 3... c6 {[%clk 0:02:52]} 4.
Bb2 {[%clk 0:02:50.9]} 4... d5 {[%clk 0:02:52.2]} 5. e3 {[%clk 0:02:50.2]} 5...
Bg7 {[%clk 0:02:51.7]} 6. Nc3 {[%clk 0:02:50.8]} 6... O-O {[%clk 0:02:50.1]} 7.
Be2 {[%clk 0:02:51.4]} 7... a5 {[%clk 0:02:49.9]} 8. O-O {[%clk 0:02:51.4]} 8...
Re8 {[%clk 0:02:47]} 9. Rc1 {[%clk 0:02:46.3]} 9... Na6 {[%clk 0:02:42.1]} 10.
cxd5 {[%clk 0:02:31.4]} 10... cxd5 {[%clk 0:02:41.2]} 11. Ne5 {[%clk 0:02:19.6]}
11... Nb4 {[%clk 0:02:34.2]} 12. Bb5 {[%clk 0:02:16.4]} 12... Rf8 {[%clk
0:02:30.7]} 13. a3 {[%clk 0:02:12.9]} 13... Qb6 {[%clk 0:01:34.3]} 14. Qe2
{[%clk 0:02:11.1]} 14... Nc6 {[%clk 0:01:30.5]} 15. Na4 {[%clk 0:02:08.2]} 15...
Qd8 {[%clk 0:01:25.1]} 16. Bxc6 {[%clk 0:02:01.9]} 16... bxc6 {[%clk 0:01:25]}
17. Nxc6 {[%clk 0:02:01]} 17... Ba6 {[%clk 0:01:03.7]} 18. d3 {[%clk 0:02:00.9]}
18... Qd6 {[%clk 0:00:48.3]} 19. Nb6 {[%clk 0:01:14.1]} 19... Rae8 {[%clk
0:00:43]} 20. Bxf6 {[%clk 0:00:28.3]} 20... Bxf6 {[%clk 0:00:42]} 21. Qf3 {[%clk
0:00:09.5]} 21... Bb2 {[%clk 0:00:30.8]} 22. Nxd5 {[%clk 0:00:04.9]} 22... Bxc1
{[%clk 0:00:28.5]} 23. Rxc1 {[%clk 0:00:05.8]} 23... Bb7 {[%clk 0:00:16]} 24.
Ncxe7+ {[%clk 0:00:03.8]} 24... Rxe7 {[%clk 0:00:15.9]} 25. Nxe7+ {[%clk
0:00:04.2]} 25... Qxe7 {[%clk 0:00:16]} 26. Qf4 {[%clk 0:00:03.7]} 26... Rd8
{[%clk 0:00:15.8]} 27. e4 {[%clk 0:00:03]} 27... Rxd3 {[%clk 0:00:14.4]} 28. h3
{[%clk 0:00:02.9]} 28... Qd7 {[%clk 0:00:14.2]} 29. Rc7 {[%clk 0:00:02.7]} 29...
Rd1+ {[%clk 0:00:13.8]} 30. Kh2 {[%clk 0:00:03]} 30... Qd6 {[%clk 0:00:12.8]}
31. Qxd6 {[%clk 0:00:03.5]} 31... Rxd6 {[%clk 0:00:13.3]} 32. Rxb7 {[%clk
0:00:04.4]} 32... Re6 {[%clk 0:00:13.5]} 33. f3 {[%clk 0:00:04.6]} 33... Rc6
{[%clk 0:00:13.2]} 34. Rb5 {[%clk 0:00:04.8]} 34... Rc3 {[%clk 0:00:13.2]} 35.
Rxa5 {[%clk 0:00:05.4]} 35... Rxb3 {[%clk 0:00:13.3]} 36. Ra7 {[%clk 0:00:06.2]}
36... Kg7 {[%clk 0:00:13.5]} 37. a4 {[%clk 0:00:06.6]} 37... Kf6 {[%clk
0:00:14]} 38. Kg3 {[%clk 0:00:07.5]} 38... Rb2 {[%clk 0:00:14]} 39. a5 {[%clk
0:00:07.6]} 39... h5 {[%clk 0:00:14.1]} 40. h4 {[%clk 0:00:07.3]} 40... Ra2
{[%clk 0:00:14.6]} 41. Kf4 {[%clk 0:00:07.2]} 41... Rxg2 {[%clk 0:00:13.9]} 42.
Ra8 {[%clk 0:00:07.4]} 42... Ra2 {[%clk 0:00:13.2]} 43. a6 {[%clk 0:00:07.6]}
43... Ra4 {[%clk 0:00:12.8]} 44. Ke3 {[%clk 0:00:07.4]} 44... Ra3+ {[%clk
0:00:12.7]} 45. Ke2 {[%clk 0:00:05.7]} 45... Ra4 {[%clk 0:00:13.6]} 46. Kd3
{[%clk 0:00:05.8]} 46... Ra2 {[%clk 0:00:14.1]} 47. Kd4 {[%clk 0:00:05.9]} 47...
Ra4+ {[%clk 0:00:13.7]} 48. Kc5 {[%clk 0:00:06.4]} 48... Ra1 {[%clk 0:00:13]}
49. Kb6 {[%clk 0:00:04.9]} 49... Ke5 {[%clk 0:00:13.4]} 50. Rf8 {[%clk
0:00:04.7]} 50... Rb1+ {[%clk 0:00:11.2]} 51. Kc7 {[%clk 0:00:02.9]} 51... Ra1
{[%clk 0:00:09.8]} 52. Kb7 {[%clk 0:00:03.5]} 52... Kf4 {[%clk 0:00:09.3]} 53.
Rxf7+ {[%clk 0:00:03.4]} 53... Kg3 {[%clk 0:00:08.8]} 54. a7 {[%clk 0:00:04.3]}
54... Kxh4 {[%clk 0:00:09]} 55. Rf6 {[%clk 0:00:04.1]} 55... g5 {[%clk
0:00:08.3]} 56. Ra6 {[%clk 0:00:04.3]} 56... Rb1+ {[%clk 0:00:08]} 57. Kc7
{[%clk 0:00:04.8]} 57... Rc1+ {[%clk 0:00:08.1]} 58. Kd7 {[%clk 0:00:04.9]}
58... Rd1+ {[%clk 0:00:08.4]} 59. Ke7 {[%clk 0:00:05.3]} 1-0

[Event "Late-Titled-Tuesday-Blitz-December-26-2023"]
[Site "Chess.com"]
[Date "2023.12.26"]
[Round "3"]
[White "APOKALIPSA13"]
[Black "The_Straightforward_Rook"]
[Result "1-0"]
[WhiteElo "2215"]
[BlackElo "2436"]
[TimeControl "180+1"]
[EndTime "14:29:22 PST"]
[Termination "APOKALIPSA13 won by checkmate"]

1. e4 {[%clk 0:02:58.3]} 1... c6 {[%clk 0:03:00]} 2. Nf3 {[%clk 0:02:56.7]} 2...
d5 {[%clk 0:03:00.3]} 3. exd5 {[%clk 0:02:56.8]} 3... cxd5 {[%clk 0:03:00.4]} 4.
d4 {[%clk 0:02:57.7]} 4... Nc6 {[%clk 0:03:00]} 5. c4 {[%clk 0:02:57.7]} 5...
Nf6 {[%clk 0:02:58.9]} 6. Nc3 {[%clk 0:02:57.4]} 6... a6 {[%clk 0:02:53.6]} 7.
cxd5 {[%clk 0:02:54.4]} 7... Nxd5 {[%clk 0:02:51.1]} 8. Bc4 {[%clk 0:02:55.3]}
8... Be6 {[%clk 0:02:45.3]} 9. Ng5 {[%clk 0:02:45.7]} 9... Nxc3 {[%clk
0:02:42.1]} 10. Bxe6 {[%clk 0:02:29.4]} 10... Nxd1 {[%clk 0:02:41.3]} 11. Bxf7+
{[%clk 0:02:29.4]} 11... Kd7 {[%clk 0:02:41]} 12. Be6+ {[%clk 0:02:29.4]} 12...
Kc7 {[%clk 0:02:40.7]} 13. Bf4+ {[%clk 0:02:23]} 13... Kb6 {[%clk 0:02:39.6]}
14. Rxd1 {[%clk 0:02:16.9]} 14... Ka7 {[%clk 0:02:29.6]} 15. O-O {[%clk
0:02:14.1]} 15... Qa5 {[%clk 0:02:22.9]} 16. a3 {[%clk 0:01:52.5]} 16... h6
{[%clk 0:02:15.3]} 17. b4 {[%clk 0:01:40.2]} 17... Qxa3 {[%clk 0:02:14.3]} 18.
Nf7 {[%clk 0:01:17.1]} 18... g5 {[%clk 0:02:06.6]} 19. Bc1 {[%clk 0:01:08.3]}
19... Qxb4 {[%clk 0:02:04.1]} 20. Nxh8 {[%clk 0:01:00.4]} 20... Bg7 {[%clk
0:02:03.4]} 21. d5 {[%clk 0:00:55.3]} 21... Nd4 {[%clk 0:01:57.7]} 22. Nf7
{[%clk 0:00:42.8]} 22... Ne2+ {[%clk 0:01:56.7]} 23. Kh1 {[%clk 0:00:41.5]}
23... Nxc1 {[%clk 0:01:57.6]} 24. Rxc1 {[%clk 0:00:41.5]} 24... a5 {[%clk
0:01:40.6]} 25. Rb1 {[%clk 0:00:39.6]} 25... Qe4 {[%clk 0:01:25.1]} 26. f3
{[%clk 0:00:37.8]} 26... Qd3 {[%clk 0:01:24.9]} 27. Rfd1 {[%clk 0:00:33]} 27...
Qc2 {[%clk 0:01:13.3]} 28. d6 {[%clk 0:00:29.9]} 28... exd6 {[%clk 0:01:09.1]}
29. Nxd6 {[%clk 0:00:30.8]} 29... Rb8 {[%clk 0:01:06.6]} 30. Bf5 {[%clk
0:00:28.8]} 30... Qf2 {[%clk 0:01:01.9]} 31. Nb5+ {[%clk 0:00:25.8]} 31... Ka8
{[%clk 0:01:01.7]} 32. Nc7+ {[%clk 0:00:25.1]} 32... Ka7 {[%clk 0:01:02.3]} 33.
Nb5+ {[%clk 0:00:23.2]} 33... Kb6 {[%clk 0:00:59.6]} 34. Nc3+ {[%clk 0:00:19.2]}
34... Kc6 {[%clk 0:00:55.3]} 35. Ne4 {[%clk 0:00:19]} 35... Bd4 {[%clk
0:00:45.7]} 36. Nxf2 {[%clk 0:00:18.1]} 36... Bxf2 {[%clk 0:00:45.2]} 37. Be4+
{[%clk 0:00:17.9]} 37... Kc7 {[%clk 0:00:44.4]} 38. Rbc1+ {[%clk 0:00:13.5]}
38... Kb6 {[%clk 0:00:43.9]} 39. Rd6+ {[%clk 0:00:12.1]} 39... Ka7 {[%clk
0:00:44.2]} 40. Ra1 {[%clk 0:00:08.1]} 40... b6 {[%clk 0:00:42.3]} 41. Rd7+
{[%clk 0:00:07.3]} 41... Ka6 {[%clk 0:00:42.7]} 42. Bd3+ {[%clk 0:00:07.5]}
42... b5 {[%clk 0:00:42.1]} 43. Rc1 {[%clk 0:00:07]} 43... Rb6 {[%clk
0:00:38.4]} 44. Rc8 {[%clk 0:00:05.7]} 44... Rb7 {[%clk 0:00:31.7]} 45. Ra8+
{[%clk 0:00:05.6]} 45... Ba7 {[%clk 0:00:30.7]} 46. Rxb7 {[%clk 0:00:03.5]}
46... Kxb7 {[%clk 0:00:31.6]} 47. Be4+ {[%clk 0:00:04]} 47... Kb6 {[%clk
0:00:32.2]} 48. Rh8 {[%clk 0:00:04.1]} 48... b4 {[%clk 0:00:29.5]} 49. Rxh6+
{[%clk 0:00:04.7]} 49... Kb5 {[%clk 0:00:30.2]} 50. Rh5 {[%clk 0:00:04.7]} 50...
Be3 {[%clk 0:00:29.8]} 51. h4 {[%clk 0:00:05.1]} 51... a4 {[%clk 0:00:27.7]} 52.
hxg5 {[%clk 0:00:05.5]} 52... a3 {[%clk 0:00:27.3]} 53. g6+ {[%clk 0:00:06.4]}
53... Kc4 {[%clk 0:00:26.5]} 54. Bd5+ {[%clk 0:00:05.7]} 54... Kc3 {[%clk
0:00:26.2]} 55. g7 {[%clk 0:00:06.3]} 55... b3 {[%clk 0:00:26.4]} 56. Bxb3
{[%clk 0:00:06.3]} 56... Kxb3 {[%clk 0:00:27.3]} 57. g8=Q+ {[%clk 0:00:06.2]}
57... Kb2 {[%clk 0:00:28.2]} 58. Ra5 {[%clk 0:00:06.3]} 58... Bc1 {[%clk
0:00:25.7]} 59. Qb8+ {[%clk 0:00:05.8]} 59... Ka1 {[%clk 0:00:25.3]} 60. Qb3
{[%clk 0:00:05]} 60... Bb2 {[%clk 0:00:25.1]} 61. Rxa3+ {[%clk 0:00:05.2]} 61...
Bxa3 {[%clk 0:00:26]} 62. Qxa3+ {[%clk 0:00:05.9]} 62... Kb1 {[%clk 0:00:26.9]}
63. g4 {[%clk 0:00:05.9]} 63... Kc2 {[%clk 0:00:27.8]} 64. g5 {[%clk 0:00:06.6]}
64... Kd2 {[%clk 0:00:28.7]} 65. g6 {[%clk 0:00:07.2]} 65... Ke2 {[%clk
0:00:29.6]} 66. g7 {[%clk 0:00:07.9]} 66... Kf2 {[%clk 0:00:30.5]} 67. g8=Q
{[%clk 0:00:06.9]} 67... Kf1 {[%clk 0:00:31.4]} 68. Qg2+ {[%clk 0:00:06.9]}
68... Ke1 {[%clk 0:00:31.3]} 69. Qa1# {[%clk 0:00:07.8]} 1-0

[Event "Late-Titled-Tuesday-Blitz-December-26-2023"]
[Site "Chess.com"]
[Date "2023.12.26"]
[Round "3"]
[White "Mystery2007"]
[Black "topce"]
[Result "1-0"]
[WhiteElo "2587"]
[BlackElo "2410"]
[TimeControl "180+1"]
[EndTime "14:29:24 PST"]
[Termination "Mystery2007 won by resignation"]

1. b3 {[%clk 0:03:00.9]} 1... a5 {[%clk 0:02:56.9]} 2. Bb2 {[%clk 0:03:01.8]}
2... a4 {[%clk 0:02:57.1]} 3. c4 {[%clk 0:02:58.8]} 3... axb3 {[%clk 0:02:54.2]}
4. axb3 {[%clk 0:02:58]} 4... Rxa1 {[%clk 0:02:54.9]} 5. Bxa1 {[%clk 0:02:58.8]}
5... c5 {[%clk 0:02:47.1]} 6. e3 {[%clk 0:02:58.3]} 6... Nc6 {[%clk 0:02:47.2]}
7. Nf3 {[%clk 0:02:58.8]} 7... d6 {[%clk 0:02:45.5]} 8. Be2 {[%clk 0:02:57.3]}
8... Nf6 {[%clk 0:02:44.3]} 9. O-O {[%clk 0:02:57.7]} 9... e5 {[%clk 0:02:44]}
10. d4 {[%clk 0:02:57.7]} 10... e4 {[%clk 0:02:31.9]} 11. Nfd2 {[%clk
0:02:50.1]} 11... Bf5 {[%clk 0:02:27.5]} 12. d5 {[%clk 0:02:25.8]} 12... Nb4
{[%clk 0:02:22.1]} 13. Nc3 {[%clk 0:02:24.9]} 13... Be7 {[%clk 0:02:17]} 14. Qb1
{[%clk 0:02:09]} 14... O-O {[%clk 0:02:05.1]} 15. Ndxe4 {[%clk 0:02:02.6]} 15...
Nxe4 {[%clk 0:02:04.7]} 16. Nxe4 {[%clk 0:02:02.5]} 16... Bxe4 {[%clk
0:01:51.1]} 17. Qxe4 {[%clk 0:02:01.7]} 17... Bf6 {[%clk 0:01:52]} 18. h3 {[%clk
0:01:47.4]} 18... Re8 {[%clk 0:01:45.3]} 19. Qf5 {[%clk 0:01:45.2]} 19... Bxa1
{[%clk 0:01:42.6]} 20. Rxa1 {[%clk 0:01:46.1]} 20... g6 {[%clk 0:01:41.5]} 21.
Qf4 {[%clk 0:01:38.9]} 21... Na6 {[%clk 0:01:19.1]} 22. h4 {[%clk 0:01:35.2]}
22... f5 {[%clk 0:01:15.2]} 23. h5 {[%clk 0:01:11.3]} 23... Qf6 {[%clk
0:01:12.9]} 24. Rb1 {[%clk 0:01:10.2]} 24... g5 {[%clk 0:01:06.3]} 25. Qf3
{[%clk 0:01:08.6]} 25... Kg7 {[%clk 0:00:55.8]} 26. Bd3 {[%clk 0:01:08.3]} 26...
Re5 {[%clk 0:00:53.7]} 27. g4 {[%clk 0:00:56.2]} 27... f4 {[%clk 0:00:18.6]} 28.
Rf1 {[%clk 0:00:48.2]} 28... Nb4 {[%clk 0:00:16.7]} 29. Bb1 {[%clk 0:00:47.7]}
29... fxe3 {[%clk 0:00:15.5]} 30. fxe3 {[%clk 0:00:44.6]} 30... Qxf3 {[%clk
0:00:15.8]} 31. Rxf3 {[%clk 0:00:45.5]} 31... h6 {[%clk 0:00:16]} 32. Kf2 {[%clk
0:00:44.8]} 32... Re7 {[%clk 0:00:15.9]} 33. Rf5 {[%clk 0:00:37.9]} 33... Rf7
{[%clk 0:00:15.7]} 34. Kf3 {[%clk 0:00:25]} 34... Rxf5+ {[%clk 0:00:15.4]} 35.
Bxf5 {[%clk 0:00:25.2]} 35... Kf6 {[%clk 0:00:16.3]} 36. Bc8 {[%clk 0:00:24.8]}
36... b6 {[%clk 0:00:17.2]} 37. Bf5 {[%clk 0:00:23.9]} 37... Na2 {[%clk
0:00:16.5]} 38. Bc2 {[%clk 0:00:22.9]} 38... Nb4 {[%clk 0:00:16.5]} 39. Bb1
{[%clk 0:00:22.4]} 39... Na6 {[%clk 0:00:16.4]} 40. Ke4 {[%clk 0:00:22.6]} 40...
Nb8 {[%clk 0:00:16.7]} 41. Kd3 {[%clk 0:00:21.4]} 41... Nd7 {[%clk 0:00:17.3]}
42. Kc3 {[%clk 0:00:21.9]} 42... Ne5 {[%clk 0:00:17.7]} 43. Bf5 {[%clk
0:00:21.9]} 43... Nf3 {[%clk 0:00:14.7]} 44. b4 {[%clk 0:00:21.2]} 44... Ke5
{[%clk 0:00:14.7]} 45. bxc5 {[%clk 0:00:20.5]} 45... bxc5 {[%clk 0:00:15.6]} 46.
Kb3 {[%clk 0:00:20.9]} 46... Nd2+ {[%clk 0:00:15.6]} 47. Kc3 {[%clk 0:00:21.1]}
47... Nf3 {[%clk 0:00:16.5]} 48. Be6 {[%clk 0:00:20.3]} 48... Nh2 {[%clk
0:00:15]} 49. Kb3 {[%clk 0:00:20.1]} 49... Nf3 {[%clk 0:00:15.5]} 50. Ka4 {[%clk
0:00:20.6]} 50... Nd2 {[%clk 0:00:15.9]} 51. Kb5 {[%clk 0:00:21.2]} 51... Ne4
{[%clk 0:00:14.6]} 52. Bf5 {[%clk 0:00:19.3]} 52... Nd2 {[%clk 0:00:15.5]} 53.
e4 {[%clk 0:00:19.3]} 53... Nf3 {[%clk 0:00:14.7]} 54. Kc6 {[%clk 0:00:19.4]}
54... Nd4+ {[%clk 0:00:15.6]} 55. Kd7 {[%clk 0:00:19.4]} 55... Nxf5 {[%clk
0:00:13.1]} 56. exf5 {[%clk 0:00:19]} 56... Kf4 {[%clk 0:00:11.6]} 57. f6 {[%clk
0:00:19.1]} 57... Kxg4 {[%clk 0:00:12.5]} 58. f7 {[%clk 0:00:20]} 58... Kh3
{[%clk 0:00:12.8]} 59. f8=Q {[%clk 0:00:20.9]} 59... g4 {[%clk 0:00:13.5]} 60.
Qxd6 {[%clk 0:00:21.5]} 60... g3 {[%clk 0:00:14.4]} 61. Qxh6 {[%clk 0:00:21]}
61... g2 {[%clk 0:00:15.3]} 62. Qg5 {[%clk 0:00:21.3]} 62... Kh2 {[%clk
0:00:15.8]} 63. Qxg2+ {[%clk 0:00:21.7]} 63... Kxg2 {[%clk 0:00:15.9]} 64. h6
{[%clk 0:00:22.6]} 64... Kf3 {[%clk 0:00:15.9]} 65. h7 {[%clk 0:00:23.5]} 65...
Ke4 {[%clk 0:00:16.8]} 66. h8=Q {[%clk 0:00:23.6]} 66... Kd3 {[%clk 0:00:17.7]}
67. Kc6 {[%clk 0:00:23.8]} 67... Kxc4 {[%clk 0:00:18.6]} 68. d6 {[%clk
0:00:23.8]} 68... Kb4 {[%clk 0:00:19]} 69. d7 {[%clk 0:00:24.7]} 69... c4 {[%clk
0:00:19.6]} 70. Qd4 {[%clk 0:00:24.4]} 70... Kb3 {[%clk 0:00:19.7]} 71. d8=Q
{[%clk 0:00:24.5]} 71... c3 {[%clk 0:00:20.6]} 72. Q8b6+ {[%clk 0:00:24.7]}
72... Kc2 {[%clk 0:00:20.6]} 73. Qbb4 {[%clk 0:00:23.2]} 73... Kc1 {[%clk
0:00:17.9]} 74. Qbxc3+ {[%clk 0:00:23.3]} 1-0

[Event "Late-Titled-Tuesday-Blitz-December-26-2023"]
[Site "Chess.com"]
[Date "2023.12.26"]
[Round "3"]
[White "rrgchessmaster05"]
[Black "SEBAZZANO"]
[Result "1-0"]
[WhiteElo "2520"]
[BlackElo "2273"]
[TimeControl "180+1"]
[EndTime "14:29:27 PST"]
[Termination "rrgchessmaster05 won on time"]

1. d4 {[%clk 0:02:59.2]} 1... Nf6 {[%clk 0:02:59.7]} 2. Nf3 {[%clk 0:02:59.5]}
2... g6 {[%clk 0:02:59.3]} 3. c4 {[%clk 0:03:00.1]} 3... c5 {[%clk 0:02:58.9]}
4. d5 {[%clk 0:03:00.3]} 4... e6 {[%clk 0:02:58.8]} 5. Nc3 {[%clk 0:02:59.9]}
5... exd5 {[%clk 0:02:58.1]} 6. cxd5 {[%clk 0:03:00.3]} 6... d6 {[%clk
0:02:58.1]} 7. h3 {[%clk 0:02:59.7]} 7... Bg7 {[%clk 0:02:58.2]} 8. e4 {[%clk
0:03:00.3]} 8... O-O {[%clk 0:02:58.5]} 9. Be2 {[%clk 0:03:00.9]} 9... b5 {[%clk
0:02:50.2]} 10. Bxb5 {[%clk 0:02:59.5]} 10... Nxe4 {[%clk 0:02:49.1]} 11. Nxe4
{[%clk 0:03:00.1]} 11... Qa5+ {[%clk 0:02:48.9]} 12. Nfd2 {[%clk 0:02:52]} 12...
Qxb5 {[%clk 0:02:47.6]} 13. Nxd6 {[%clk 0:02:50.9]} 13... Qa6 {[%clk 0:02:44.2]}
14. N6c4 {[%clk 0:02:50]} 14... Re8+ {[%clk 0:02:28]} 15. Kf1 {[%clk 0:02:47.4]}
15... Nd7 {[%clk 0:02:23.8]} 16. Kg1 {[%clk 0:02:47]} 16... Nf6 {[%clk
0:02:13.6]} 17. d6 {[%clk 0:02:40.2]} 17... Be6 {[%clk 0:02:01.1]} 18. Qf1
{[%clk 0:02:31.5]} 18... Ne4 {[%clk 0:01:29.7]} 19. f3 {[%clk 0:02:08.3]} 19...
Ng3 {[%clk 0:01:23]} 20. Qd3 {[%clk 0:02:08.3]} 20... Bd4+ {[%clk 0:01:10.4]}
21. Kh2 {[%clk 0:02:08.3]} 21... Nxh1 {[%clk 0:01:10.5]} 22. Kxh1 {[%clk
0:02:08.6]} 22... Bxc4 {[%clk 0:01:08.9]} 23. Nxc4 {[%clk 0:02:04.6]} 23... Re1+
{[%clk 0:01:07]} 24. Kh2 {[%clk 0:02:05.2]} 24... Rd8 {[%clk 0:00:42.5]} 25. Bg5
{[%clk 0:01:52.7]} 25... Rxd6 {[%clk 0:00:22.8]} 26. Rxe1 {[%clk 0:01:39.5]}
26... Be5+ {[%clk 0:00:20.6]} 27. Nxe5 {[%clk 0:01:21.2]} 27... Rxd3 {[%clk
0:00:20.4]} 28. Nxd3 {[%clk 0:01:18.9]} 28... Qxd3 {[%clk 0:00:20.2]} 29. Bf6
{[%clk 0:01:05.7]} 29... Qd6+ {[%clk 0:00:18.7]} 30. Be5 {[%clk 0:01:06.4]}
30... Qd2 {[%clk 0:00:18.1]} 31. Bc3 {[%clk 0:01:00.8]} 31... Qd6+ {[%clk
0:00:17.9]} 32. Kh1 {[%clk 0:01:00.2]} 32... f6 {[%clk 0:00:15.8]} 33. a3 {[%clk
0:01:00]} 33... Kf7 {[%clk 0:00:15.8]} 34. Kg1 {[%clk 0:00:59.6]} 34... c4
{[%clk 0:00:14.7]} 35. Re2 {[%clk 0:00:58.4]} 35... g5 {[%clk 0:00:14.7]} 36.
Rd2 {[%clk 0:00:57.9]} 36... Qg3 {[%clk 0:00:12.5]} 37. Re2 {[%clk 0:00:57.8]}
37... Qd6 {[%clk 0:00:12]} 38. Re4 {[%clk 0:00:55.6]} 38... Kg6 {[%clk
0:00:11.8]} 39. Rd4 {[%clk 0:00:47.3]} 39... Qa6 {[%clk 0:00:09.6]} 40. Kh1
{[%clk 0:00:44.7]} 40... Qe6 {[%clk 0:00:09.7]} 41. Re4 {[%clk 0:00:43.5]} 41...
Qd5 {[%clk 0:00:09.5]} 42. Rd4 {[%clk 0:00:38.8]} 42... Qe6 {[%clk 0:00:09.6]}
43. a4 {[%clk 0:00:37.3]} 43... h5 {[%clk 0:00:09.1]} 44. a5 {[%clk 0:00:37]}
44... f5 {[%clk 0:00:04.6]} 45. Bb4 {[%clk 0:00:27.1]} 45... Kf7 {[%clk
0:00:04.5]} 46. Bc3 {[%clk 0:00:20.1]} 46... g4 {[%clk 0:00:04.1]} 47. hxg4
{[%clk 0:00:21]} 47... hxg4 {[%clk 0:00:04.3]} 48. fxg4 {[%clk 0:00:21.9]} 48...
fxg4 {[%clk 0:00:04.5]} 49. Kg1 {[%clk 0:00:16.3]} 49... Qe2 {[%clk 0:00:04]}
50. Rf4+ {[%clk 0:00:15.6]} 50... Kg6 {[%clk 0:00:03.4]} 51. Rf2 {[%clk
0:00:12]} 51... Qe3 {[%clk 0:00:03]} 52. Kf1 {[%clk 0:00:12.2]} 52... Qc1+
{[%clk 0:00:02.9]} 53. Ke2 {[%clk 0:00:11.7]} 53... Qc2+ {[%clk 0:00:03.4]} 54.
Ke3 {[%clk 0:00:10.7]} 54... Qd3+ {[%clk 0:00:03.2]} 55. Kf4 {[%clk 0:00:11.1]}
55... Kh5 {[%clk 0:00:02.9]} 56. Rd2 {[%clk 0:00:09.8]} 56... Qf1+ {[%clk
0:00:02.4]} 57. Ke5 {[%clk 0:00:10.2]} 57... Qe1+ {[%clk 0:00:02.2]} 58. Kd4
{[%clk 0:00:10]} 58... Qe6 {[%clk 0:00:01.6]} 59. Kc5 {[%clk 0:00:09.5]} 59...
Qe5+ {[%clk 0:00:01.9]} 60. Rd5 {[%clk 0:00:09.7]} 1-0